bitfinex/quotes_ETHUSD_20250807
["timestamp","ask_amount","ask_price","bid_price","bid_amount"]
[1754567541564,0.4279,3834.3,3833.6,0.001]
[1754567541861,2.60842265,3833.8,3833.6,0.001]
[1754567542063,2.60844614,3833.7,3833.6,0.001]
[1754567542228,18.82899075,3833.7,3833.6,0.001]
[1754567542428,18.56814614,3833.7,3833.6,0.001]
[1754567543656,15.9597,3833.7,3833.6,0.001]
[1754567545164,15.9597,3833.7,3833.6,2.60951419]
[1754567545165,14.5,3833.7,3833.6,2.60951419]
[1754567546067,14.5,3833.7,3833.6,2.77311419]
[1754567546264,8.11470825,3834.5,3833.8,2.60833037]
[1754567546600,1.0318,3834.5,3833.8,2.60833037]
[1754567546772,14.5,3834.4,3833.7,2.60842156]
[1754567546930,14.5,3834.4,3833.8,2.60835447]
[1754567547130,14.5,3834.4,3833.9,2.60827918]
[1754567547369,14.5,3834.4,3834.1,2.60812141]
[1754567547934,14.5,3834.4,3834.0,2.60822951]
[1754567548133,14.5,3834.4,3833.9,2.60825796]
[1754567548134,1.4597,3834.3,3833.9,2.60825796]
[1754567548332,14.5,3834.4,3833.8,2.6083621]
[1754567548333,1.4597,3834.2,3833.8,2.6083621]
[1754567548566,14.5,3834.4,3833.6,4.472]
[1754567548774,14.5,3834.4,3834.0,2.60819876]
[1754567549069,14.5,3834.4,3833.6,5.18005259]
[1754567549070,1.4597,3834.3,3833.6,0.001]
[1754567549436,2.60830272,3834.0,3833.6,0.001]
[1754567549834,1.4597,3833.9,3833.6,0.001]
[1754567550069,1.0318,3834.3,3833.9,0.8]
[1754567550275,1.0318,3834.2,3833.9,0.8]
[1754567550493,1.4597,3834.1,3833.9,0.8]
[1754567550777,4.06794204,3834.0,3833.9,0.8]
[1754567551162,4.30764073,3834.0,3833.9,0.8]
[1754567551466,2.60831007,3833.9,3833.8,0.001]
[1754567551785,4.06801007,3833.9,3833.8,0.001]
[1754567552759,18.56801007,3833.9,3833.8,0.001]
[1754567552965,20.75239385,3833.9,3833.8,0.001]
[1754567553975,2.60694131,3836.0,3833.8,2.60937811]
[1754567554199,0.002,3836.3,3835.4,2.60728998]
[1754567554400,0.002,3836.3,3835.4,4.573]
[1754567554698,0.002,3836.3,3835.4,7.64019747]
[1754567554857,1.0338,3836.3,3835.4,7.64019747]
[1754567555052,1.0338,3836.3,3835.4,8.44019747]
[1754567555652,14.5,3836.2,3835.4,8.44019747]
[1754567557455,0.1304,3835.6,3835.4,0.8]
[1754567557654,0.002,3835.9,3835.4,11.12918998]
[1754567558052,0.002,3835.9,3835.4,10.96728998]
[1754567558756,1e-08,3835.5,3835.4,10.32918998]
[1754567558983,1e-08,3835.5,3835.4,11.62285043]
[1754567560654,1e-08,3835.5,3835.4,11.61685043]
[1754567561966,1e-08,3835.5,3835.4,11.45495043]
[1754567562812,1e-08,3835.5,3835.4,11.44195043]
[1754567563806,1e-08,3835.5,3835.4,11.60385043]
[1754567564461,1e-08,3835.5,3835.4,11.44195043]
[1754567564807,1e-08,3835.5,3835.4,11.60385043]
[1754567565423,1e-08,3835.5,3835.4,12.15385043]
[1754567567080,0.002,3835.9,3835.4,12.15385043]
[1754567567278,1.4597,3837.2,3836.6,2.60647448]
[1754567567478,1.4597,3837.2,3836.6,7.12847448]
[1754567567827,14.5,3837.1,3836.6,7.12847448]
[1754567568229,0.4279,3837.6,3836.6,7.12847448]
[1754567568381,1.0318,3837.0,3836.6,7.12847448]
[1754567569162,1.0338,3836.7,3836.6,2.60647448]
[1754567569424,1.4617,3836.7,3836.6,7.12347448]
[1754567569798,1.4617,3836.7,3836.6,7.12147448]
[1754567570310,0.002,3836.7,3836.6,7.12147448]
[1754567570618,0.002,3836.7,3836.6,7.11847448]
[1754567570619,1.4111,3836.7,3836.6,7.11847448]
[1754567571891,1.4111,3836.7,3835.2,9.31942425]
[1754567572204,0.9603,3836.6,3836.5,5.60647994]
[1754567572408,1.4091,3836.6,3836.5,10.10654242]
[1754567572716,1.4091,3836.6,3836.5,4.499]
[1754567572934,1.4091,3836.6,3836.5,7.10554242]
[1754567573140,0.002,3836.7,3836.6,2.60647448]
[1754567573502,0.9623,3836.7,3836.6,2.60647448]
[1754567574229,0.002,3836.7,3836.6,2.60647448]
[1754567574630,1.4111,3836.7,3836.6,2.60647448]
[1754567575149,0.9623,3836.7,3836.6,7.10547448]
[1754567575644,1.4111,3836.7,3836.6,2.60647448]
[1754567575818,1.4111,3836.7,3836.6,7.10047448]
[1754567576403,1.4111,3836.7,3836.6,7.09647448]
[1754567577647,1.4111,3836.7,3836.6,7.09347448]
[1754567577936,1.4111,3836.7,3836.6,2.60647448]
[1754567578239,1.4111,3836.7,3836.6,7.08847448]
[1754567579718,1.4111,3836.7,3836.6,2.60647448]
[1754567580352,0.002,3836.7,3836.6,10.6687825]
[1754567580536,0.002,3836.7,3836.6,10.8007825]
[1754567580905,0.002,3836.7,3836.6,10.6687825]
[1754567581559,0.002,3836.7,3836.6,11.3507825]
[1754567583331,0.002,3836.7,3836.6,11.2187825]
[1754567583647,0.002,3836.7,3836.6,11.2057825]
[1754567584128,0.002,3836.7,3836.6,6.7477825]
[1754567584329,0.002,3836.7,3836.6,11.2017825]
[1754567585361,0.002,3836.7,3836.6,6.1977825]
[1754567585521,0.002,3836.7,3836.6,10.6517825]
[1754567586915,1e-08,3836.7,3836.6,22.49018413]
[1754567587113,0.002,3837.4,3836.6,22.49018413]
[1754567587114,0.002,3837.4,3837.3,3.155999]
[1754567587454,1e-08,3837.4,3837.3,10.94265889]
[1754567587617,1e-08,3837.4,3837.3,17.3095989]
[1754567588037,1e-08,3837.4,3837.3,17.1765989]
[1754567588523,1e-08,3837.4,3837.3,12.1825989]
[1754567588723,1e-08,3837.4,3837.3,16.6245989]
[1754567589041,1e-08,3837.4,3837.3,16.308999]
[1754567589921,0.96030001,3837.4,3837.3,16.308999]
[1754567590245,1e-08,3837.4,3837.3,16.308999]
[1754567591221,1.40910001,3837.4,3837.3,16.299999]
[1754567591721,1e-08,3837.4,3837.3,18.19060689]
[1754567593053,1e-08,3837.4,3837.3,18.74060689]
[1754567593853,1e-08,3837.4,3837.3,18.87260689]
[1754567594153,1e-08,3837.4,3837.3,18.74060689]
[1754567594350,1e-08,3837.4,3837.3,18.73160689]
[1754567597741,1e-08,3837.4,3837.3,19.18040689]
[1754567599752,1e-08,3837.4,3837.3,19.15940689]
[1754567600374,1e-08,3837.4,3837.3,18.71060689]
[1754567600533,0.97480001,3837.4,3837.3,18.71060689]
[1754567601051,1.43580001,3837.4,3837.3,16.269999]
[1754567602061,1.43580001,3837.4,3837.3,6.261]
[1754567602262,1.43580001,3837.4,3837.3,10.657]
[1754567602465,1.43580001,3837.4,3837.3,13.262999]
[1754567602861,1.43580001,3837.4,3837.3,8.866999]
[1754567603059,1.43580001,3837.4,3837.3,13.262999]
[1754567603577,1.43580001,3837.4,3837.3,8.866999]
[1754567603774,1.57938001,3837.4,3837.3,10.655]
[1754567605337,1.43580001,3837.4,3837.3,10.655]
[1754567605772,1.43580001,3837.4,3837.3,6.999999]
[1754567606078,1.43580001,3837.4,3837.3,4.394]
[1754567606440,1.43580001,3837.4,3837.3,6.999999]
[1754567606774,1.43580001,3837.4,3837.3,4.394]
[1754567607552,15.93580001,3837.4,3837.3,4.381]
[1754567607769,17.78995659,3837.4,3837.0,2.60617841]
[1754567607968,16.35415659,3837.4,3837.1,4.377]
[1754567608156,1.4358,3837.3,3837.1,4.377]
[1754567608476,1.4358,3837.2,3837.1,6.98307545]
[1754567608682,1.4358,3837.2,3837.1,4.377]
[1754567609177,1.4358,3837.2,3837.1,6.98313484]
[1754567609681,1.4358,3837.2,3837.1,4.377]
[1754567609858,1.4358,3837.2,3837.1,6.98313484]
[1754567610055,1.4358,3837.2,3836.5,0.7]
[1754567610256,1.4358,3837.1,3836.7,3.0]
[1754567610495,14.50000001,3837.4,3837.2,2.60602404]
[1754567610696,14.50000001,3837.4,3837.3,4.367]
[1754567611195,15.93580001,3837.4,3837.2,2.60602557]
[1754567611397,14.50000001,3837.4,3837.3,4.366]
[1754567612102,15.93580001,3837.4,3837.3,4.366]
[1754567612513,15.93580001,3837.4,3837.3,4.364]
[1754567612674,15.93580001,3837.4,3836.5,2.6064863]
[1754567612675,17.52938001,3837.4,3836.2,0.782899]
[1754567613000,2.60626733,3837.0,3836.4,4.359]
[1754567613207,0.461,3836.9,3836.4,4.359]
[1754567613369,1.4358,3836.9,3836.4,4.359]
[1754567613565,1.4358,3836.8,3836.4,4.359]
[1754567613899,1.4358,3836.8,3836.5,4.359]
[1754567613900,1.4358,3836.7,3836.5,4.359]
[1754567614059,1.4358,3836.7,3836.3,0.001]
[1754567614060,15.9358,3836.6,3836.3,0.001]
[1754567614463,1.4358,3836.5,3836.4,4.359]
[1754567614666,1.4358,3836.5,3836.3,0.001]
[1754567614899,1.4358,3836.4,3836.3,0.001]
[1754567615075,1.4358,3836.4,3836.3,4.36]
[1754567616719,1.4358,3836.4,3836.3,6.9666783]
[1754567617106,1.4358,3836.4,3836.3,4.36]
[1754567617638,3.22820914,3839.8,3836.3,4.36]
[1754567617639,0.461,3837.2,3836.9,2.60627068]
[1754567617936,0.97480001,3837.4,3837.0,4.359]
[1754567618125,0.97480001,3837.4,3837.3,2.605999]
[1754567618426,0.97480001,3837.4,3837.3,6.964999]
[1754567619107,0.97480001,3837.4,3837.3,4.359]
[1754567619304,1.43580001,3837.4,3837.3,6.964999]
[1754567619724,1e-08,3837.4,3837.3,6.964999]
[1754567619926,1e-08,3837.4,3837.3,7.86311184]
[1754567621121,1e-08,3837.4,3837.3,6.964999]
[1754567622399,1e-08,3837.4,3837.3,10.602999]
[1754567624130,1e-08,3837.4,3837.3,10.514999]
[1754567625705,1e-08,3837.4,3837.3,10.602999]
[1754567625924,0.002,3838.2,3838.1,6.15545582]
[1754567626136,0.002,3838.2,3838.1,11.38955525]
[1754567626505,0.002,3838.2,3838.1,11.47755525]
[1754567626936,0.002,3838.2,3838.1,11.38955525]
[1754567628252,0.002,3838.2,3838.1,7.03155525]
[1754567628451,1e-08,3838.2,3838.1,11.38955525]
[1754567628632,1e-08,3838.2,3838.1,11.47755525]
[1754567629745,1e-08,3838.2,3838.1,11.38955525]
[1754567630742,1e-08,3838.2,3838.1,7.03155525]
[1754567631145,0.94500001,3838.2,3838.1,7.03155525]
[1754567631347,1.41130001,3838.2,3838.1,6.96245582]
[1754567631711,1.41130001,3838.2,3838.1,9.96245582]
[1754567631942,1.41130001,3838.2,3838.1,6.96245582]
[1754567632117,1.36130001,3838.2,3838.0,2.6054669]
[1754567632444,0.13613,3838.2,3838.1,4.356]
[1754567632611,0.002,3838.6,3838.1,4.356]
[1754567632815,0.4663,3838.5,3838.1,4.356]
[1754567633005,0.4663,3838.5,3838.0,2.60550716]
[1754567633206,0.4663,3838.5,3838.1,4.356]
[1754567633448,14.5,3838.4,3838.1,4.356]
[1754567633650,14.5,3838.4,3838.0,2.60550716]
[1754567633651,0.4663,3838.3,3838.0,2.60550716]
[1754567633839,0.4663,3838.3,3838.1,4.356]
[1754567634033,0.4663,3838.3,3837.8,3.0]
[1754567634215,0.945,3838.2,3837.9,4.356]
[1754567634410,0.4663,3838.1,3838.0,6.96150556]
[1754567634615,1.4113,3838.1,3838.0,6.96150556]
[1754567635621,1.4113,3838.1,3838.0,4.356]
[1754567636309,1.4113,3838.1,3838.0,6.96152371]
[1754567636952,1.4113,3838.1,3838.0,4.356]
[1754567637123,1.55243,3838.1,3838.0,4.356]
[1754567637322,15.9113,3838.1,3838.0,4.356]
[1754567639846,15.9113,3838.1,3837.3,3.0]
[1754567640149,1.4113,3838.0,3837.4,4.355]
[1754567640326,1.4113,3837.9,3837.4,4.355]
[1754567640530,14.5,3838.1,3837.5,2.60581281]
[1754567640732,1.4113,3837.8,3837.6,4.355]
[1754567641153,1.4113,3837.8,3837.7,2.60572738]
[1754567641356,14.5,3838.1,3837.8,2.6056065]
[1754567641564,14.5,3838.1,3837.3,3.0]
[1754567641565,14.5,3838.1,3837.9,4.355]
[1754567641926,1.4113,3838.0,3837.9,4.355]
[1754567643257,1.4113,3838.0,3837.6,2.60577112]
[1754567643483,1.4113,3837.9,3837.6,4.354]
[1754567643659,2.60561278,3837.9,3837.6,4.354]
[1754567643961,1.4113,3837.8,3837.6,4.354]
[1754567644320,1.4113,3837.7,3837.6,4.354]
[1754567645059,1.4113,3837.7,3837.6,6.95979528]
[1754567645630,0.945,3837.7,3837.6,6.95979528]
[1754567645844,0.945,3838.3,3837.9,2.60553959]
[1754567646055,0.945,3838.3,3838.0,4.354]
[1754567646257,0.4663,3838.2,3838.1,4.354]
[1754567646429,1.4113,3838.2,3838.1,4.354]
[1754567646631,3.33256674,3838.2,3838.1,4.354]
[1754567647459,1.4113,3838.2,3838.1,6.15945582]
[1754567647659,1.4113,3838.2,3838.1,3.554]
[1754567648471,1.4113,3838.2,3838.1,6.15945582]
[1754567648774,1.4113,3838.2,3838.1,3.554]
[1754567650047,15.9113,3838.2,3838.1,3.554]
[1754567650247,17.83255963,3838.2,3838.1,3.554]
[1754567651365,17.83255963,3838.2,3837.5,2.60580826]
[1754567651677,1.4113,3838.1,3837.9,4.3]
[1754567651840,16.42125963,3838.2,3837.9,4.3]
[1754567651841,16.42125963,3838.2,3838.0,4.353]
[1754567652440,1.4113,3838.1,3837.9,4.3]
[1754567652643,1.4113,3838.0,3837.9,4.3]
[1754567652874,1.4113,3838.0,3837.9,8.652]
[1754567654240,1.74663134,3838.1,3837.8,4.352]
[1754567654446,0.945,3838.8,3837.9,2.60559159]
[1754567654676,1.4113,3838.5,3838.0,4.352]
[1754567654865,1.4113,3838.4,3838.2,2.60535187]
[1754567655069,0.4663,3838.4,3838.3,4.352]
[1754567655588,14.9663,3838.4,3838.3,4.352]
[1754567655770,17.40813,3838.4,3838.2,4.351]
[1754567655953,1.4113,3838.3,3838.0,2.60549741]
[1754567656153,0.4663,3838.2,3838.1,4.351]
[1754567656477,0.4663,3838.2,3838.1,6.95645582]
[1754567656648,14.9663,3838.4,3838.3,2.60532006]
[1754567656975,14.9663,3838.4,3838.2,2.60538688]
[1754567657175,14.9663,3838.4,3838.1,6.95644707]
[1754567657346,0.4663,3838.3,3838.1,6.95644707]
[1754567657546,0.4663,3838.2,3838.1,6.95644707]
[1754567658083,15.9113,3838.4,3838.2,2.60535089]
[1754567658286,0.945,3838.2,3838.1,6.95644364]
[1754567658448,1.4113,3838.2,3838.1,6.95644364]
[1754567658644,1.4113,3838.2,3838.1,4.351]
[1754567659348,1.4113,3838.2,3837.9,2.60554102]
[1754567659551,1.4113,3838.1,3838.0,4.35]
[1754567659750,1.4113,3838.1,3837.6,2.60573817]
[1754567659982,1.4113,3838.0,3837.9,2.60554345]
[1754567660182,1.4113,3838.0,3837.9,8.65]
[1754567661185,1.53242762,3838.0,3837.9,8.65]
[1754567661485,1.99662762,3838.0,3837.9,8.649]
[1754567661795,15.9098,3838.0,3837.9,8.649]
[1754567663283,15.9098,3838.0,3837.9,4.3]
[1754567663782,18.51532371,3838.0,3837.9,4.3]
[1754567664366,15.9098,3838.0,3837.9,4.3]
[1754567664555,18.45665989,3838.0,3837.9,4.3]
[1754567664956,21.0621836,3838.0,3837.9,4.3]
[1754567665763,25.4101836,3838.0,3837.9,4.3]
[1754567666396,2.60567367,3837.8,3837.6,4.348]
[1754567666700,3.22693664,3837.7,3837.6,4.348]
[1754567667200,2.60611855,3837.2,3836.7,0.001]
[1754567667403,2.60611855,3837.2,3836.8,4.347]
[1754567667404,2.60620276,3837.0,3836.8,4.347]
[1754567667567,4.44307751,3837.0,3836.7,0.001]
[1754567667766,18.94307751,3837.0,3836.7,0.001]
[1754567667984,20.35287751,3837.0,3836.7,0.001]
[1754567670667,14.5,3837.0,3836.7,0.001]
[1754567671068,14.5,3837.0,3836.9,4.347]
[1754567671468,14.5,3837.0,3836.9,6.95327068]
[1754567671668,14.5,3837.0,3836.9,4.347]
[1754567672492,14.5,3837.0,3836.9,6.95327068]
[1754567674404,0.9456,3837.7,3836.9,4.347]
[1754567674608,0.4642,3837.8,3837.4,2.60590513]
[1754567674820,5.7548,3837.8,3837.4,2.60590513]
[1754567674977,14.5,3837.7,3837.4,2.60590513]
[1754567675307,0.4642,3837.6,3837.2,4.345]
[1754567675508,6.95066604,3837.8,3837.2,6.95102443]
[1754567675712,1.4098,3837.5,3837.2,4.345]
[1754567675914,15.9098,3837.5,3837.2,4.345]
[1754567676095,14.5,3837.5,3837.2,4.344]
[1754567676289,1.4098,3837.4,3837.2,4.344]
[1754567676490,1.4098,3837.3,3837.2,4.344]
[1754567677001,1.4098,3837.3,3836.9,2.60726182]
[1754567677214,1.4098,3837.2,3836.9,0.001]
[1754567677376,1.4098,3837.2,3837.0,4.344]
[1754567677577,1.4098,3837.1,3837.0,4.344]
[1754567678439,1.4098,3837.1,3836.9,4.345]
[1754567678592,1.4098,3837.0,3836.9,4.345]
[1754567679342,1.99654488,3837.0,3836.9,0.001]
[1754567679529,19.10274764,3837.0,3836.9,0.001]
[1754567681013,16.49654488,3837.0,3836.9,0.001]
[1754567681225,15.4456,3837.0,3836.9,0.001]
[1754567681717,15.9098,3837.0,3836.9,0.001]
[1754567683178,18.51600276,3837.0,3836.9,0.001]
[1754567685198,15.9098,3837.0,3836.9,0.001]
[1754567685398,18.19558779,3837.0,3836.9,0.001]
[1754567686521,15.4456,3837.0,3836.9,0.001]
[1754567686686,6.94566765,3837.8,3836.9,4.341]
[1754567686883,7.89126765,3837.8,3837.1,2.60608905]
[1754567687088,15.59609946,3837.7,3837.1,2.60608905]
[1754567687594,18.20183265,3837.7,3837.1,2.60608905]
[1754567687919,1.4098,3837.6,3837.0,2.6061916]
[1754567688294,1.4098,3837.6,3836.9,4.341]
[1754567688492,14.5,3837.5,3837.3,2.60595248]
[1754567689086,14.5,3837.5,3837.3,2.60599155]
[1754567689283,14.5,3837.5,3837.2,6.94602609]
[1754567690230,15.3748,3837.5,3837.2,4.34]
[1754567690794,15.3748,3837.5,3837.2,6.94605117]
[1754567690998,15.3748,3837.5,3837.2,4.34]
[1754567691330,0.8748,3837.4,3837.2,4.34]
[1754567691498,1.3029,3837.3,3836.9,4.339]
[1754567691834,14.5,3837.5,3836.9,4.339]
[1754567691996,14.5,3837.5,3837.4,2.60593109]
[1754567692196,14.5,3837.5,3837.4,6.94293109]
[1754567692500,0.8748,3838.1,3837.5,2.60581238]
[1754567692830,4.57876227,3838.1,3837.4,4.337]
[1754567693034,4.57876227,3838.1,3837.5,2.60585374]
[1754567693524,4.57876227,3838.1,3837.4,4.337]
[1754567693525,2.6055442,3838.0,3837.4,6.94291829]
[1754567693705,3.4803442,3838.0,3837.4,6.94291829]
[1754567693906,2.60563295,3837.9,3837.4,4.337]
[1754567694292,1.97328565,3838.1,3837.4,6.94292195]
[1754567694500,1.97328565,3838.1,3837.4,4.337]
[1754567694724,2.12383857,3838.0,3837.4,4.337]
[1754567694933,3.90849529,3837.9,3837.4,4.337]
[1754567695236,1.3029,3837.8,3837.4,4.337]
[1754567695434,0.4281,3837.8,3837.4,4.337]
[1754567695637,1.3029,3837.7,3836.9,0.001]
[1754567695933,6.45883857,3838.0,3837.4,2.60590285]
[1754567696102,6.30828565,3838.1,3837.6,2.6057736]
[1754567696292,1.09848565,3838.1,3837.6,2.6057736]
[1754567696491,0.8748,3838.0,3837.6,2.6057716]
[1754567696693,14.5,3838.2,3837.4,4.335]
[1754567696923,14.5,3838.2,3837.9,2.60554775]
[1754567697476,0.8748,3838.1,3837.8,4.335]
[1754567697658,14.5,3838.2,3837.8,4.335]
[1754567697844,1.3029,3838.0,3837.8,4.335]
[1754567698054,0.8748,3837.9,3837.8,4.335]
[1754567698580,0.4281,3838.0,3837.8,6.94065949]
[1754567699076,1.3029,3838.0,3837.8,4.335]
[1754567699868,0.8748,3838.0,3837.8,4.335]
[1754567700066,14.5,3838.2,3837.8,4.335]
[1754567700462,3.90838805,3838.1,3837.8,4.335]
[1754567700685,1.3029,3838.0,3837.8,4.335]
[1754567700980,2.60559159,3837.9,3836.9,0.001]
[1754567701145,2.60585662,3837.6,3837.0,6.93819521]
[1754567701482,0.39084916,3837.8,3836.9,0.001]
[1754567701483,1.3029,3837.5,3836.9,0.001]
[1754567701636,2.60620276,3837.0,3836.9,4.333]
[1754567701837,3.90910276,3837.0,3836.9,0.001]
[1754567702341,19.06062349,3837.0,3836.9,0.001]
[1754567705999,33.77258767,3837.0,3836.9,1e-08]
[1754567706379,33.77258767,3837.0,3834.7,0.104439]
[1754567706380,3.55,3836.4,3834.7,0.104439]
[1754567706581,2.60715403,3835.6,3834.3,4.33]
[1754567706777,9.93715403,3835.6,3834.3,4.33]
[1754567706969,25.74005403,3835.6,3834.3,4.33]
[1754567707575,25.74005403,3835.6,3834.2,0.001]
[1754567707967,26.29005403,3835.6,3834.2,0.001]
[1754567708173,37.45201821,3835.6,3835.5,1e-08]
[1754567708368,40.13589749,3835.6,3835.5,1e-08]
[1754567709506,2.60776592,3834.7,3834.2,0.001]
[1754567709706,6.93676592,3834.7,3834.2,0.001]
[1754567710005,4.329,3834.7,3834.2,0.001]
[1754567710202,17.10776592,3834.7,3834.2,0.001]
[1754567710574,17.98256592,3834.7,3834.2,0.001]
[1754567710775,15.3748,3834.7,3834.2,0.001]
[1754567710975,14.5,3834.7,3834.2,0.001]
[1754567711708,15.3748,3834.7,3834.2,0.001]
[1754567712331,14.5,3834.7,3834.2,2.60908968]
[1754567712533,14.5,3834.7,3834.2,0.001]
[1754567712922,14.5,3834.7,3834.2,2.60910517]
[1754567713100,14.5,3834.7,3834.2,0.001]
[1754567713300,14.5,3834.7,3834.2,2.60910042]
[1754567713635,14.5,3834.7,3834.6,2.60883393]
[1754567713931,14.5,3834.7,3834.6,0.001]
[1754567715997,14.5,3834.7,3834.6,2.60883393]
[1754567716198,14.5,3834.7,3834.6,0.001]
[1754567716829,4.328,3834.9,3834.6,2.60882235]
[1754567717043,4.328,3834.9,3834.6,0.001]
[1754567717248,14.5,3834.8,3834.6,0.001]
[1754567717729,14.5,3834.8,3834.6,2.6088293]
[1754567717932,14.5,3834.8,3834.7,2.60776592]
[1754567718257,4.326,3835.5,3835.1,2.60744092]
[1754567718558,14.5,3835.4,3835.2,2.6074201]
[1754567718720,14.5,3835.4,3834.6,0.001]
[1754567718910,1.3029,3835.3,3834.6,0.001]
[1754567719105,4.326,3835.5,3835.2,2.60735984]
[1754567719353,4.326,3835.4,3835.2,2.60735984]
[1754567719537,14.5,3835.3,3835.0,2.60751812]
[1754567719811,14.5,3835.3,3835.1,2.60745268]
[1754567720010,14.5,3835.3,3835.2,2.60742594]
[1754567720407,14.5,3835.3,3834.6,0.001]
[1754567720408,17.2576,3835.3,3834.6,0.001]
[1754567720610,5.6364,3835.2,3834.6,0.001]
[1754567720866,4.325,3835.1,3834.9,2.60761451]
[1754567721143,18.825,3835.3,3834.9,2.60761451]
[1754567721346,0.875,3835.2,3834.8,2.60767481]
[1754567721647,1.3114,3835.2,3834.9,2.6076232]
[1754567722437,1.3114,3835.2,3834.8,2.6076809]
[1754567722638,0.875,3835.1,3834.8,2.6076809]
[1754567722954,0.4364,3835.1,3835.0,0.001]
[1754567723472,1.3114,3835.1,3835.0,0.001]
[1754567723644,3.58577797,3835.1,3835.0,0.001]
[1754567723843,6.1932719,3835.1,3835.0,0.001]
[1754567724162,3.58577797,3835.1,3835.0,0.001]
[1754567725050,4.323,3835.1,3835.0,0.001]
[1754567725666,5.6344,3835.1,3835.0,0.001]
[1754567725972,5.198,3835.1,3835.0,0.001]
[1754567726679,20.1344,3835.1,3835.0,0.001]
[1754567727169,22.74189393,3835.1,3835.0,0.001]
[1754567727378,22.66932589,3835.1,3835.0,0.001]
[1754567728340,25.27681982,3835.1,3835.0,0.001]
[1754567730680,22.66932589,3835.1,3835.0,0.001]
[1754567731439,25.27681982,3835.1,3835.0,0.001]
[1754567731642,22.74189393,3835.1,3835.0,0.001]
[1754567735988,18.41889393,3835.1,3835.0,0.001]
[1754567736192,22.73589393,3835.1,3835.0,0.001]
[1754567736497,18.41889393,3835.1,3835.0,0.001]
[1754567736695,22.73489393,3835.1,3835.0,0.001]
[1754567736869,25.41877321,3835.1,3835.0,0.001]
[1754567737994,21.49987928,3835.1,3835.0,0.001]
[1754567738196,18.816,3835.1,3835.0,0.001]
[1754567738499,14.5,3835.1,3835.0,0.001]
[1754567739398,1.33499857,3835.5,3835.2,2.60736522]
[1754567739604,1.33499857,3835.5,3835.0,0.001]
[1754567739765,15.375,3835.4,3835.0,0.001]
[1754567739965,15.8114,3835.4,3835.0,0.001]
[1754567740165,1.3114,3835.3,3835.0,0.001]
[1754567740463,1.33499857,3835.5,3835.4,2.60728998]
[1754567741362,1.33499857,3835.5,3835.3,2.60733362]
[1754567741565,1.33499857,3835.5,3835.0,2.60853481]
[1754567741903,1.3114,3835.4,3835.1,2.60748947]
[1754567742252,1.3114,3835.4,3835.0,0.001]
[1754567742253,14.5,3835.3,3835.0,2.60855891]
[1754567742451,14.5,3835.3,3835.0,0.001]
[1754567742658,1.3114,3835.2,3835.0,0.001]
[1754567743252,14.5,3835.1,3835.0,0.001]
[1754567743448,14.5,3835.1,3835.0,2.60856192]
[1754567744016,4.312,3835.6,3835.3,2.60731623]
[1754567744233,4.312,3835.7,3835.2,2.60740615]
[1754567744445,6.01023614,3835.7,3835.2,2.60740615]
[1754567744654,6.01023614,3835.7,3835.3,2.60735545]
[1754567744655,0.002,3835.4,3835.3,2.60735545]
[1754567744850,0.002,3835.4,3835.2,2.60740985]
[1754567745052,0.002,3835.4,3835.0,2.60856002]
[1754567745053,0.002,3835.4,3835.0,0.001]
[1754567745356,0.877,3835.4,3835.0,0.001]
[1754567745526,2.36278676,3835.4,3835.0,0.001]
[1754567745726,0.002,3835.4,3835.0,0.001]
[1754567745980,0.875,3835.3,3835.0,0.001]
[1754567746133,0.875,3835.3,3835.1,4.3]
[1754567746466,0.875,3835.2,3835.1,4.3]
[1754567746826,0.4364,3835.3,3835.1,4.3]
[1754567747026,1.3114,3835.3,3835.1,4.3]
[1754567747333,1.3114,3835.3,3835.0,2.60850586]
[1754567747665,0.002,3835.4,3835.0,0.001]
[1754567747866,1.3114,3835.2,3835.0,2.60856167]
[1754567748162,0.875,3835.2,3835.0,2.60856167]
[1754567749358,0.875,3835.2,3835.1,2.60749393]
[1754567749737,0.002,3835.4,3835.1,2.60749393]
[1754567750238,0.002,3835.4,3835.3,2.60735796]
[1754567751771,0.002,3835.4,3835.2,2.60740056]
[1754567751977,0.929,3835.4,3835.2,2.60740056]
[1754567752144,0.929,3835.4,3835.2,2.60742594]
[1754567752942,0.002,3835.4,3835.2,2.60742594]
[1754567753147,0.002,3835.4,3835.2,2.60738491]
[1754567753570,0.929,3835.4,3835.2,2.60738491]
[1754567753874,0.927,3835.3,3835.2,2.60738491]
[1754567754176,0.927,3835.3,3835.1,2.60747272]
[1754567754871,0.927,3835.3,3835.2,2.60742594]
[1754567755558,1.3905,3835.3,3835.1,2.60745031]
[1754567755753,0.002,3835.4,3835.3,2.60735796]
[1754567758059,0.929,3835.4,3835.1,2.60748167]
[1754567758275,1.3925,3835.4,3835.1,2.60748167]
[1754567758458,0.927,3835.3,3835.0,4.303]
[1754567758665,0.927,3835.3,3835.1,2.6074521]
[1754567758860,0.927,3835.2,3835.1,2.6074521]
[1754567759187,0.929,3835.4,3835.1,2.6074521]
[1754567759481,0.927,3835.2,3835.1,2.6074521]
[1754567759983,1.3905,3835.2,3835.1,2.6074521]
[1754567760548,0.927,3835.2,3835.1,2.6074521]
[1754567761010,0.927,3835.2,3835.1,6.9074521]
[1754567761362,0.002,3835.4,3835.1,4.3]
[1754567761568,0.927,3835.2,3835.1,4.3]